[Event "Late-Titled-Tuesday-Blitz-September-05-2023"]
[Site "Chess.com"]
[Date "2023.09.05"]
[Round "8"]
[White "SaqoChess_Twitch"]
[Black "HansOnTwitch"]
[Result "0-1"]
[WhiteElo "2754"]
[BlackElo "3009"]
[TimeControl "180+1"]
[EndTime "15:30:29 PDT"]
[Termination "HansOnTwitch won by checkmate"]

1. d4 {[%clk 0:03:00.9]} 1... Nf6 {[%clk 0:02:55]} 2. c4 {[%clk 0:03:01.2]} 2...
e6 {[%clk 0:02:51.2]} 3. Nc3 {[%clk 0:03:01.2]} 3... Bb4 {[%clk 0:02:49.9]} 4.
e3 {[%clk 0:03:01.4]} 4... O-O {[%clk 0:02:49.4]} 5. a3 {[%clk 0:03:01.4]} 5...
Bxc3+ {[%clk 0:02:48.9]} 6. bxc3 {[%clk 0:03:02.3]} 6... d6 {[%clk 0:02:48.6]}
7. Bd3 {[%clk 0:03:02.9]} 7... e5 {[%clk 0:02:46.8]} 8. f3 {[%clk 0:02:58.2]}
8... c5 {[%clk 0:01:58.3]} 9. Ne2 {[%clk 0:02:52.6]} 9... Nc6 {[%clk 0:01:49.7]}
10. O-O {[%clk 0:02:49.2]} 10... b6 {[%clk 0:01:43.7]} 11. d5 {[%clk 0:02:48.1]}
11... Na5 {[%clk 0:01:43.7]} 12. Ng3 {[%clk 0:02:46.9]} 12... Ba6 {[%clk
0:01:41.2]} 13. f4 {[%clk 0:02:44.9]} 13... e4 {[%clk 0:01:05.8]} 14. Nxe4
{[%clk 0:02:35]} 14... Nxe4 {[%clk 0:01:04.6]} 15. Bxe4 {[%clk 0:02:35.9]} 15...
Bxc4 {[%clk 0:01:04.8]} 16. Bd3 {[%clk 0:02:35.1]} 16... f5 {[%clk 0:00:58.8]}
17. e4 {[%clk 0:02:22.1]} 17... fxe4 {[%clk 0:00:52.8]} 18. Bxc4 {[%clk
0:01:53.7]} 18... Nxc4 {[%clk 0:00:53.7]} 19. Qe2 {[%clk 0:01:54.2]} 19... b5
{[%clk 0:00:54.2]} 20. Qxe4 {[%clk 0:01:54.3]} 20... Qf6 {[%clk 0:00:54.3]} 21.
Qe6+ {[%clk 0:01:47.3]} 21... Qf7 {[%clk 0:00:34.6]} 22. a4 {[%clk 0:01:44.2]}
22... a6 {[%clk 0:00:34.4]} 23. f5 {[%clk 0:01:24.3]} 23... Rfe8 {[%clk
0:00:32.9]} 24. Qxf7+ {[%clk 0:01:10.5]} 24... Kxf7 {[%clk 0:00:33.8]} 25. Bf4
{[%clk 0:01:10.2]} 25... b4 {[%clk 0:00:33]} 26. cxb4 {[%clk 0:01:09.2]} 26...
cxb4 {[%clk 0:00:33.9]} 27. a5 {[%clk 0:00:57.5]} 27... Rab8 {[%clk 0:00:26]}
28. Rfb1 {[%clk 0:00:51.6]} 28... Re4 {[%clk 0:00:22.7]} 29. g3 {[%clk
0:00:51.3]} 29... b3 {[%clk 0:00:20.5]} 30. Ra4 {[%clk 0:00:47.4]} 30... b2
{[%clk 0:00:19.4]} 31. Ra2 {[%clk 0:00:35.1]} 31... Rb5 {[%clk 0:00:17.4]} 32.
Bxd6 {[%clk 0:00:28.9]} 32... Nxd6 {[%clk 0:00:15.4]} 33. Raxb2 {[%clk
0:00:29.5]} 33... Rxd5 {[%clk 0:00:14.4]} 34. Rb6 {[%clk 0:00:28.7]} 34... Nxf5
{[%clk 0:00:14.3]} 35. Rxa6 {[%clk 0:00:26.2]} 35... Re6 {[%clk 0:00:11.5]} 36.
Rb7+ {[%clk 0:00:25.1]} 36... Kf6 {[%clk 0:00:09.7]} 37. Rxe6+ {[%clk
0:00:25.1]} 37... Kxe6 {[%clk 0:00:10.3]} 38. a6 {[%clk 0:00:26]} 38... Ra5
{[%clk 0:00:07.8]} 39. a7 {[%clk 0:00:26.5]} 39... Ne7 {[%clk 0:00:05.7]} 40.
Rb6+ {[%clk 0:00:25.3]} 40... Kd7 {[%clk 0:00:04.1]} 41. Rb7+ {[%clk 0:00:25.7]}
41... Kd6 {[%clk 0:00:04.5]} 42. Rb6+ {[%clk 0:00:25.9]} 42... Nc6 {[%clk
0:00:03.6]} 43. Rb7 {[%clk 0:00:24.9]} 43... Rxa7 {[%clk 0:00:03.8]} 44. Rb2
{[%clk 0:00:25.4]} 44... Re7 {[%clk 0:00:03.9]} 45. Kg2 {[%clk 0:00:26]} 45...
Ne5 {[%clk 0:00:04.3]} 46. h4 {[%clk 0:00:26.5]} 46... Ke6 {[%clk 0:00:04.9]}
47. Re2 {[%clk 0:00:26.8]} 47... Kf6 {[%clk 0:00:05.2]} 48. Rf2+ {[%clk
0:00:27.2]} 48... Ke6 {[%clk 0:00:05.9]} 49. Re2 {[%clk 0:00:28.1]} 49... h5
{[%clk 0:00:06.4]} 50. Rd2 {[%clk 0:00:27.6]} 50... g6 {[%clk 0:00:06.9]} 51.
Re2 {[%clk 0:00:27.9]} 51... Rd7 {[%clk 0:00:07.5]} 52. Rf2 {[%clk 0:00:27.7]}
52... Rd3 {[%clk 0:00:07.7]} 53. Re2 {[%clk 0:00:27.7]} 53... Kd5 {[%clk
0:00:08.3]} 54. Kh3 {[%clk 0:00:27.8]} 54... Ng4 {[%clk 0:00:07.7]} 55. Rd2
{[%clk 0:00:28.1]} 55... Ke4 {[%clk 0:00:06.5]} 56. Re2+ {[%clk 0:00:28.3]}
56... Re3 {[%clk 0:00:04.9]} 57. Ra2 {[%clk 0:00:28.7]} 57... Ne5 {[%clk
0:00:04.7]} 58. Ra4+ {[%clk 0:00:28.7]} 58... Kd5 {[%clk 0:00:05.2]} 59. Ra5+
{[%clk 0:00:29]} 59... Ke6 {[%clk 0:00:05.5]} 60. Ra6+ {[%clk 0:00:29.5]} 60...
Kf5 {[%clk 0:00:06.2]} 61. Ra4 {[%clk 0:00:30]} 61... Re4 {[%clk 0:00:06.3]} 62.
Ra3 {[%clk 0:00:30]} 62... Ng4 {[%clk 0:00:05.8]} 63. Ra5+ {[%clk 0:00:27.3]}
63... Kf6 {[%clk 0:00:05.5]} 64. Ra6+ {[%clk 0:00:27.6]} 64... Re6 {[%clk
0:00:05.9]} 65. Ra1 {[%clk 0:00:25.7]} 65... Nh6 {[%clk 0:00:06.1]} 66. Rf1+
{[%clk 0:00:25.5]} 66... Nf5 {[%clk 0:00:06.6]} 67. Rf3 {[%clk 0:00:25.8]} 67...
Re3 {[%clk 0:00:06.3]} 68. Kg2 {[%clk 0:00:24.3]} 68... Rxf3 {[%clk 0:00:05.7]}
69. Kxf3 {[%clk 0:00:25.2]} 69... Ke5 {[%clk 0:00:06.3]} 70. g4 {[%clk
0:00:25.7]} 70... Nxh4+ {[%clk 0:00:06]} 71. Kg3 {[%clk 0:00:25.9]} 71... g5
{[%clk 0:00:06.3]} 72. gxh5 {[%clk 0:00:25.8]} 72... Nf5+ {[%clk 0:00:06.9]} 73.
Kg4 {[%clk 0:00:26]} 73... Kf6 {[%clk 0:00:07.8]} 74. Kf3 {[%clk 0:00:22.6]}
74... Nh6 {[%clk 0:00:08.7]} 75. Kg3 {[%clk 0:00:22.7]} 75... Kf5 {[%clk
0:00:06.6]} 76. Kf3 {[%clk 0:00:22.6]} 76... g4+ {[%clk 0:00:07]} 77. Kg3 {[%clk
0:00:23.1]} 77... Kg5 {[%clk 0:00:07.9]} 78. Kh2 {[%clk 0:00:22.6]} 78... Kxh5
{[%clk 0:00:08.8]} 79. Kg3 {[%clk 0:00:23.3]} 79... Kg5 {[%clk 0:00:09.7]} 80.
Kg2 {[%clk 0:00:24.1]} 80... Nf5 {[%clk 0:00:10.6]} 81. Kh2 {[%clk 0:00:24.2]}
81... Kf4 {[%clk 0:00:11.5]} 82. Kg2 {[%clk 0:00:25.1]} 82... g3 {[%clk
0:00:12.4]} 83. Kh3 {[%clk 0:00:25.2]} 83... Ne3 {[%clk 0:00:10.6]} 84. Kh4
{[%clk 0:00:25.1]} 84... g2 {[%clk 0:00:11.1]} 85. Kh5 {[%clk 0:00:25.8]} 85...
g1=Q {[%clk 0:00:11.4]} 86. Kh6 {[%clk 0:00:26.7]} 86... Qg8 {[%clk 0:00:11.5]}
87. Kh5 {[%clk 0:00:27]} 87... Qg5# {[%clk 0:00:12.4]} 0-1

[Event "Late-Titled-Tuesday-Blitz-September-05-2023"]
[Site "Chess.com"]
[Date "2023.09.05"]
[Round "8"]
[White "sergoy"]
[Black "Bigfish1995"]
[Result "1/2-1/2"]
[WhiteElo "2919"]
[BlackElo "3075"]
[TimeControl "180+1"]
[EndTime "15:30:31 PDT"]
[Termination "Game drawn - insufficient material"]

1. d4 {[%clk 0:03:00.9]} 1... a6 {[%clk 0:02:58.5]} 2. e4 {[%clk 0:03:00.3]}
2... e6 {[%clk 0:02:57.5]} 3. c4 {[%clk 0:02:56.2]} 3... g6 {[%clk 0:02:56.6]}
4. Nc3 {[%clk 0:02:55.3]} 4... Bg7 {[%clk 0:02:55.4]} 5. h4 {[%clk 0:02:55.9]}
5... d5 {[%clk 0:02:43.6]} 6. cxd5 {[%clk 0:02:28.5]} 6... exd5 {[%clk
0:02:42.1]} 7. e5 {[%clk 0:02:27.1]} 7... h5 {[%clk 0:02:26.5]} 8. Bg5 {[%clk
0:02:24.9]} 8... Ne7 {[%clk 0:02:09.8]} 9. Be2 {[%clk 0:02:19.5]} 9... Be6
{[%clk 0:02:08]} 10. Nh3 {[%clk 0:02:18]} 10... c5 {[%clk 0:02:04.1]} 11. dxc5
{[%clk 0:01:50.7]} 11... Nbc6 {[%clk 0:02:02]} 12. Nf4 {[%clk 0:01:50.4]} 12...
Qa5 {[%clk 0:01:56.9]} 13. O-O {[%clk 0:01:47.7]} 13... Qxc5 {[%clk 0:01:41.3]}
14. Bf6 {[%clk 0:01:44.8]} 14... O-O {[%clk 0:01:38.6]} 15. Bxh5 {[%clk
0:01:43]} 15... Nxe5 {[%clk 0:01:31.4]} 16. Bxg7 {[%clk 0:01:34.1]} 16... Kxg7
{[%clk 0:01:32.3]} 17. Re1 {[%clk 0:01:34.4]} 17... N7c6 {[%clk 0:01:24.4]} 18.
Bxg6 {[%clk 0:01:15]} 18... Bg4 {[%clk 0:01:15.9]} 19. Qd2 {[%clk 0:00:19.5]}
19... fxg6 {[%clk 0:01:13.3]} 20. Ncxd5 {[%clk 0:00:20.2]} 20... Rad8 {[%clk
0:01:03.5]} 21. Rac1 {[%clk 0:00:20.2]} 21... Qd6 {[%clk 0:00:58.2]} 22. Qc3
{[%clk 0:00:20.8]} 22... Kh7 {[%clk 0:00:50.1]} 23. Qg3 {[%clk 0:00:20.9]} 23...
Bf5 {[%clk 0:00:44]} 24. Rcd1 {[%clk 0:00:17.4]} 24... Nd3 {[%clk 0:00:37.5]}
25. h5 {[%clk 0:00:07.7]} 25... Nxe1 {[%clk 0:00:27.7]} 26. hxg6+ {[%clk
0:00:07.6]} 26... Bxg6 {[%clk 0:00:27.7]} 27. Rxe1 {[%clk 0:00:07.7]} 27... Rde8
{[%clk 0:00:20.2]} 28. Qh4+ {[%clk 0:00:07.8]} 28... Kg8 {[%clk 0:00:20.1]} 29.
Rd1 {[%clk 0:00:08.5]} 29... Rxf4 {[%clk 0:00:17.6]} 30. Qxf4 {[%clk 0:00:09.4]}
30... Qxf4 {[%clk 0:00:17.5]} 31. Nxf4 {[%clk 0:00:10.3]} 31... Bf7 {[%clk
0:00:18]} 32. Rd7 {[%clk 0:00:10.5]} 32... b5 {[%clk 0:00:17.2]} 33. a3 {[%clk
0:00:10.1]} 33... Ne5 {[%clk 0:00:16.5]} 34. Ra7 {[%clk 0:00:09.4]} 34... Ng4
{[%clk 0:00:14.1]} 35. g3 {[%clk 0:00:09.9]} 35... Re1+ {[%clk 0:00:12.8]} 36.
Kg2 {[%clk 0:00:10.4]} 36... Rb1 {[%clk 0:00:13.3]} 37. Kf3 {[%clk 0:00:11]}
37... Ne5+ {[%clk 0:00:12.8]} 38. Ke4 {[%clk 0:00:11.6]} 38... Nc4 {[%clk
0:00:12.9]} 39. Rxa6 {[%clk 0:00:11.1]} 39... Rxb2 {[%clk 0:00:13.3]} 40. Nd3
{[%clk 0:00:07.2]} 40... Ra2 {[%clk 0:00:13.6]} 41. Nc5 {[%clk 0:00:06.2]} 41...
Nxa3 {[%clk 0:00:12.9]} 42. f4 {[%clk 0:00:06.7]} 42... b4 {[%clk 0:00:12.9]}
43. Kf5 {[%clk 0:00:06.3]} 43... Rc2 {[%clk 0:00:12.7]} 44. Nd7 {[%clk
0:00:04.8]} 44... Rc7 {[%clk 0:00:12.1]} 45. Ne5 {[%clk 0:00:04]} 45... Rb7
{[%clk 0:00:11.2]} 46. Kf6 {[%clk 0:00:03.9]} 46... Bd5 {[%clk 0:00:06.3]} 47.
Ra8+ {[%clk 0:00:03.7]} 47... Kh7 {[%clk 0:00:06.8]} 48. Rd8 {[%clk 0:00:04]}
48... Be4 {[%clk 0:00:06.5]} 49. Nf7 {[%clk 0:00:03.8]} 49... Rb6+ {[%clk
0:00:06.3]} 50. Ke5 {[%clk 0:00:03.9]} 50... Bc2 {[%clk 0:00:06.1]} 51. f5
{[%clk 0:00:02.6]} 51... b3 {[%clk 0:00:05.2]} 52. Ng5+ {[%clk 0:00:02.7]} 52...
Kg7 {[%clk 0:00:05.1]} 53. Ne6+ {[%clk 0:00:03.5]} 53... Kf7 {[%clk 0:00:04.9]}
54. Rd7+ {[%clk 0:00:03.8]} 54... Ke8 {[%clk 0:00:04.9]} 55. Rh7 {[%clk
0:00:03.3]} 55... Nc4+ {[%clk 0:00:05.3]} 56. Kd4 {[%clk 0:00:02.7]} 56... Rxe6
{[%clk 0:00:05.1]} 57. Rh8+ {[%clk 0:00:02.7]} 57... Ke7 {[%clk 0:00:05.5]} 58.
fxe6 {[%clk 0:00:03.6]} 58... Nd6 {[%clk 0:00:02.6]} 59. Rb8 {[%clk 0:00:03.7]}
59... Kxe6 {[%clk 0:00:03]} 60. Kc3 {[%clk 0:00:04.2]} 60... Ne4+ {[%clk
0:00:03.6]} 61. Kb2 {[%clk 0:00:04.8]} 61... Nc5 {[%clk 0:00:04.5]} 62. Rb5
{[%clk 0:00:04.9]} 62... Kd5 {[%clk 0:00:04.6]} 63. g4 {[%clk 0:00:05.5]} 63...
Kc4 {[%clk 0:00:04.2]} 64. Rb8 {[%clk 0:00:04.3]} 64... Nd3+ {[%clk 0:00:04.2]}
65. Ka3 {[%clk 0:00:04.7]} 65... Kc3 {[%clk 0:00:04.8]} 66. g5 {[%clk
0:00:04.3]} 66... b2 {[%clk 0:00:05.1]} 67. g6 {[%clk 0:00:05]} 67... Nb4 {[%clk
0:00:02.9]} 68. Rxb4 {[%clk 0:00:04.5]} 68... b1=Q {[%clk 0:00:03.2]} 69. Rxb1
{[%clk 0:00:05]} 69... Bxb1 {[%clk 0:00:04.1]} 70. g7 {[%clk 0:00:05.1]} 70...
Bh7 {[%clk 0:00:05]} 71. Ka4 {[%clk 0:00:05.5]} 71... Bg8 {[%clk 0:00:05.8]} 72.
Kb5 {[%clk 0:00:06.4]} 72... Kd4 {[%clk 0:00:06.1]} 73. Kc6 {[%clk 0:00:07.3]}
73... Ke5 {[%clk 0:00:06.9]} 74. Kd7 {[%clk 0:00:08.2]} 74... Kf6 {[%clk
0:00:07.8]} 75. Ke8 {[%clk 0:00:08.9]} 75... Kxg7 {[%clk 0:00:07.4]} 1/2-1/2

[Event "Late-Titled-Tuesday-Blitz-September-05-2023"]
[Site "Chess.com"]
[Date "2023.09.05"]
[Round "8"]
[White "JoakimVonAnd"]
[Black "TheRigos"]
[Result "1/2-1/2"]
[WhiteElo "2717"]
[BlackElo "2563"]
[TimeControl "180+1"]
[EndTime "15:30:51 PDT"]
[Termination "Game drawn by repetition"]

1. d4 {[%clk 0:03:00.9]} 1... Nf6 {[%clk 0:02:55.3]} 2. c4 {[%clk 0:03:01.2]}
2... g6 {[%clk 0:02:55.9]} 3. Nc3 {[%clk 0:02:59.2]} 3... Bg7 {[%clk 0:02:56.3]}
4. e4 {[%clk 0:02:58.1]} 4... d6 {[%clk 0:02:56.7]} 5. Be2 {[%clk 0:02:57.2]}
5... O-O {[%clk 0:02:56.2]} 6. Be3 {[%clk 0:02:57.7]} 6... Nc6 {[%clk
0:02:49.7]} 7. d5 {[%clk 0:02:47.4]} 7... Ne5 {[%clk 0:02:49.4]} 8. h3 {[%clk
0:02:46.9]} 8... e6 {[%clk 0:02:47.5]} 9. Nf3 {[%clk 0:02:43.2]} 9... Nxf3+
{[%clk 0:02:44.3]} 10. Bxf3 {[%clk 0:02:44.1]} 10... Nd7 {[%clk 0:02:44.4]} 11.
O-O {[%clk 0:02:42.9]} 11... exd5 {[%clk 0:02:35.7]} 12. cxd5 {[%clk 0:02:39.6]}
12... Re8 {[%clk 0:02:04.5]} 13. Rc1 {[%clk 0:02:34.4]} 13... a6 {[%clk
0:01:58.7]} 14. Re1 {[%clk 0:02:30.9]} 14... Nc5 {[%clk 0:01:18.4]} 15. Bd4
{[%clk 0:02:15.4]} 15... Bxd4 {[%clk 0:01:14.7]} 16. Qxd4 {[%clk 0:02:16.3]}
16... Qg5 {[%clk 0:01:03.6]} 17. Qe3 {[%clk 0:02:07.3]} 17... Qxe3 {[%clk
0:01:00.6]} 18. Rxe3 {[%clk 0:02:08.2]} 18... Re7 {[%clk 0:00:45]} 19. Ne2
{[%clk 0:01:56.7]} 19... a5 {[%clk 0:00:44.1]} 20. Nd4 {[%clk 0:01:55.6]} 20...
Bd7 {[%clk 0:00:43.4]} 21. b3 {[%clk 0:01:54.2]} 21... Rae8 {[%clk 0:00:42.6]}
22. Rce1 {[%clk 0:01:51.4]} 22... Kg7 {[%clk 0:00:41.5]} 23. h4 {[%clk
0:01:46.3]} 23... h5 {[%clk 0:00:40.3]} 24. g3 {[%clk 0:01:45.2]} 24... Kf6
{[%clk 0:00:39.3]} 25. Bg2 {[%clk 0:01:42.4]} 25... Kg7 {[%clk 0:00:39.3]} 26.
a3 {[%clk 0:01:32.1]} 26... c6 {[%clk 0:00:29.6]} 27. dxc6 {[%clk 0:01:25.8]}
27... bxc6 {[%clk 0:00:29.6]} 28. b4 {[%clk 0:00:45.7]} 28... axb4 {[%clk
0:00:29.9]} 29. axb4 {[%clk 0:00:46.6]} 29... Na6 {[%clk 0:00:21.4]} 30. Nc2
{[%clk 0:00:46.4]} 30... Rb8 {[%clk 0:00:20.8]} 31. Rd1 {[%clk 0:00:31.1]} 31...
c5 {[%clk 0:00:12.4]} 32. bxc5 {[%clk 0:00:25.8]} 32... dxc5 {[%clk 0:00:13.3]}
33. Rc3 {[%clk 0:00:26.1]} 33... Ba4 {[%clk 0:00:12]} 34. Rd6 {[%clk 0:00:24.7]}
34... Rb1+ {[%clk 0:00:09.2]} 35. Kh2 {[%clk 0:00:24.9]} 35... Nb4 {[%clk
0:00:07.5]} 36. Ne3 {[%clk 0:00:22.7]} 36... Rb2 {[%clk 0:00:05.4]} 37. Kg1
{[%clk 0:00:19]} 37... Ra2 {[%clk 0:00:05.9]} 38. Rxc5 {[%clk 0:00:18.4]} 38...
Nc2 {[%clk 0:00:04.3]} 39. Nxc2 {[%clk 0:00:18.3]} 39... Bxc2 {[%clk 0:00:05.2]}
40. e5 {[%clk 0:00:17.3]} 40... Ra1+ {[%clk 0:00:04.6]} 41. Kh2 {[%clk
0:00:17.4]} 41... Ra2 {[%clk 0:00:05.2]} 42. Rd2 {[%clk 0:00:17.3]} 42... Bb3
{[%clk 0:00:02.8]} 43. Rxa2 {[%clk 0:00:17.5]} 43... Bxa2 {[%clk 0:00:03.7]} 44.
f4 {[%clk 0:00:18]} 44... Be6 {[%clk 0:00:04.5]} 45. Kg1 {[%clk 0:00:17.8]}
45... Rd7 {[%clk 0:00:04.9]} 46. Kf2 {[%clk 0:00:17.9]} 46... Rd2+ {[%clk
0:00:05.2]} 47. Kg1 {[%clk 0:00:17.9]} 47... Rd1+ {[%clk 0:00:05]} 48. Kf2
{[%clk 0:00:18.1]} 48... Rd2+ {[%clk 0:00:05.9]} 49. Kf1 {[%clk 0:00:15.5]}
49... Rd1+ {[%clk 0:00:06]} 50. Ke2 {[%clk 0:00:14.4]} 50... Rg1 {[%clk
0:00:05]} 51. Kf2 {[%clk 0:00:14.2]} 51... Ra1 {[%clk 0:00:05.7]} 52. Rc2 {[%clk
0:00:14.2]} 52... Bf5 {[%clk 0:00:05.4]} 53. Rd2 {[%clk 0:00:14.6]} 53... Rc1
{[%clk 0:00:05.8]} 54. Bf3 {[%clk 0:00:15.2]} 54... Bh3 {[%clk 0:00:05.4]} 55.
Bg2 {[%clk 0:00:15.4]} 55... Bg4 {[%clk 0:00:05.7]} 56. Bf3 {[%clk 0:00:15.7]}
56... Bh3 {[%clk 0:00:06.1]} 57. Re2 {[%clk 0:00:14.7]} 57... Rf1+ {[%clk
0:00:05.6]} 58. Ke3 {[%clk 0:00:14.7]} 58... Ra1 {[%clk 0:00:06.5]} 59. Bd5
{[%clk 0:00:14.4]} 59... Ra3+ {[%clk 0:00:06.6]} 60. Kf2 {[%clk 0:00:14.8]}
60... Bg4 {[%clk 0:00:07.2]} 61. e6 {[%clk 0:00:15.2]} 61... fxe6 {[%clk
0:00:04.3]} 62. Rxe6 {[%clk 0:00:06.5]} 62... Bxe6 {[%clk 0:00:04.7]} 63. Bxe6
{[%clk 0:00:07.4]} 63... Kf6 {[%clk 0:00:05.5]} 64. Bd5 {[%clk 0:00:07.5]} 64...
Rd3 {[%clk 0:00:05.3]} 65. Bc6 {[%clk 0:00:07.3]} 65... Rc3 {[%clk 0:00:05.2]}
66. Bb7 {[%clk 0:00:07.6]} 66... Kf5 {[%clk 0:00:04.4]} 67. Bf3 {[%clk
0:00:07.2]} 67... Ra3 {[%clk 0:00:03.7]} 68. Be2 {[%clk 0:00:06.5]} 68... Kf6
{[%clk 0:00:04.6]} 69. Bf3 {[%clk 0:00:06.7]} 69... Rc3 {[%clk 0:00:05.5]} 70.
Be2 {[%clk 0:00:07.2]} 70... Ke6 {[%clk 0:00:05.8]} 71. Bf3 {[%clk 0:00:07.8]}
71... Kd6 {[%clk 0:00:06.7]} 72. Be4 {[%clk 0:00:08.2]} 72... Rc5 {[%clk
0:00:04.1]} 73. Bxg6 {[%clk 0:00:08.2]} 73... Ke6 {[%clk 0:00:05]} 74. Kf3
{[%clk 0:00:08.3]} 74... Kf6 {[%clk 0:00:05.2]} 75. Be8 {[%clk 0:00:08.7]} 75...
Ke7 {[%clk 0:00:05.3]} 76. Bg6 {[%clk 0:00:09]} 76... Kf6 {[%clk 0:00:06.2]} 77.
Be4 {[%clk 0:00:09.2]} 77... Rc3+ {[%clk 0:00:06.1]} 78. Kf2 {[%clk 0:00:09.6]}
78... Ra3 {[%clk 0:00:06.3]} 79. Bf3 {[%clk 0:00:09.3]} 79... Ra5 {[%clk
0:00:05.9]} 80. Ke3 {[%clk 0:00:09.1]} 80... Ra3+ {[%clk 0:00:06.1]} 81. Kf2
{[%clk 0:00:09.7]} 81... Ra5 {[%clk 0:00:06.5]} 82. Be2 {[%clk 0:00:10.2]} 82...
Kg6 {[%clk 0:00:06]} 83. Bf3 {[%clk 0:00:09.7]} 83... Ra2+ {[%clk 0:00:05.8]}
84. Ke3 {[%clk 0:00:09.9]} 84... Ra3+ {[%clk 0:00:06.7]} 85. Kf2 {[%clk
0:00:10.3]} 85... Ra5 {[%clk 0:00:06.2]} 86. Be4+ {[%clk 0:00:10.5]} 86... Kf6
{[%clk 0:00:07.1]} 87. Kf3 {[%clk 0:00:11.1]} 87... Ra3+ {[%clk 0:00:07.3]} 88.
Kg2 {[%clk 0:00:11.1]} 88... Ra2+ {[%clk 0:00:08.2]} 89. Kf3 {[%clk 0:00:11.5]}
89... Ra3+ {[%clk 0:00:08.8]} 90. Kf2 {[%clk 0:00:12.2]} 90... Ra5 {[%clk
0:00:09.7]} 91. Kf3 {[%clk 0:00:11.6]} 91... Ke6 {[%clk 0:00:10]} 92. Kf2 {[%clk
0:00:11.9]} 92... Kf6 {[%clk 0:00:10.5]} 1/2-1/2

[Event "Late-Titled-Tuesday-Blitz-September-05-2023"]
[Site "Chess.com"]
[Date "2023.09.05"]
[Round "9"]
[White "AquivaRubinstein"]
[Black "Nick12772"]
[Result "1-0"]
[WhiteElo "2481"]
[BlackElo "2332"]
[TimeControl "180+1"]
[EndTime "15:41:26 PDT"]
[Termination "AquivaRubinstein won by resignation"]

1. d4 {[%clk 0:03:00.9]} 1... Nf6 {[%clk 0:02:59.8]} 2. c4 {[%clk 0:03:01]} 2...
g6 {[%clk 0:03:00.1]} 3. Nc3 {[%clk 0:03:01.2]} 3... d5 {[%clk 0:03:00.6]} 4.
Nf3 {[%clk 0:03:00.2]} 4... Bg7 {[%clk 0:03:00.6]} 5. Bf4 {[%clk 0:03:00.4]}
5... O-O {[%clk 0:03:00.6]} 6. Rc1 {[%clk 0:03:00.6]} 6... c5 {[%clk 0:03:00.9]}
7. dxc5 {[%clk 0:02:59.9]} 7... Qa5 {[%clk 0:03:01.3]} 8. cxd5 {[%clk
0:02:57.4]} 8... Rd8 {[%clk 0:02:48.2]} 9. Bd2 {[%clk 0:02:04.4]} 9... Qxc5
{[%clk 0:02:26.7]} 10. e4 {[%clk 0:02:04.3]} 10... Ng4 {[%clk 0:02:15.3]} 11.
Qe2 {[%clk 0:02:03.8]} 11... b6 {[%clk 0:02:03.5]} 12. Nb5 {[%clk 0:01:40.6]}
12... Qd6 {[%clk 0:01:41.4]} 13. Nxd6 {[%clk 0:01:39.8]} 1-0

[Event "Late-Titled-Tuesday-Blitz-September-05-2023"]
[Site "Chess.com"]
[Date "2023.09.05"]
[Round "9"]
[White "IlanSchnaider"]
[Black "boldpilot22622"]
[Result "1-0"]
[WhiteElo "2739"]
[BlackElo "2510"]
[TimeControl "180+1"]
[EndTime "15:41:34 PDT"]
[Termination "IlanSchnaider won by resignation"]

1. d4 {[%clk 0:03:00.9]} 1... d6 {[%clk 0:02:59.5]} 2. e4 {[%clk 0:03:00]} 2...
g6 {[%clk 0:02:59]} 3. Nc3 {[%clk 0:03:00.2]} 3... Bg7 {[%clk 0:02:59.7]} 4. f4
{[%clk 0:03:00.2]} 4... Nd7 {[%clk 0:02:59.1]} 5. Nf3 {[%clk 0:02:59.5]} 5... e5
{[%clk 0:02:58.2]} 6. Bc4 {[%clk 0:02:56]} 6... Nh6 {[%clk 0:02:20]} 7. O-O
{[%clk 0:02:54.1]} 7... O-O {[%clk 0:02:20.9]} 8. dxe5 {[%clk 0:02:50.8]} 8...
dxe5 {[%clk 0:02:19.8]} 9. fxe5 {[%clk 0:02:51.6]} 9... Nb6 {[%clk 0:02:15.4]}
10. Qxd8 {[%clk 0:02:45.2]} 10... Rxd8 {[%clk 0:02:16.3]} 11. Bb3 {[%clk
0:02:45.8]} 11... Ng4 {[%clk 0:02:08.2]} 12. Bg5 {[%clk 0:02:24.5]} 12... Re8
{[%clk 0:02:05.3]} 13. Nb5 {[%clk 0:02:20.8]} 13... Be6 {[%clk 0:01:37.2]} 14.
Nxc7 {[%clk 0:02:13.9]} 14... Bxb3 {[%clk 0:01:35.5]} 15. axb3 {[%clk 0:02:14]}
15... Nxe5 {[%clk 0:01:35.8]} 16. Nxe8 {[%clk 0:02:10.3]} 16... Rxe8 {[%clk
0:01:36.7]} 17. Rxa7 {[%clk 0:02:10]} 17... Nxf3+ {[%clk 0:01:29.5]} 18. gxf3
{[%clk 0:02:10.4]} 18... Bxb2 {[%clk 0:01:29]} 19. Rxb7 {[%clk 0:02:10.1]} 19...
Bd4+ {[%clk 0:01:28.3]} 20. Kg2 {[%clk 0:02:09.1]} 20... Nc8 {[%clk 0:01:24]}
21. Rd1 {[%clk 0:02:08.3]} 1-0

[Event "Late-Titled-Tuesday-Blitz-September-05-2023"]
[Site "Chess.com"]
[Date "2023.09.05"]
[Round "9"]
[White "kacprekt"]
[Black "DenizSeyhanoglu1"]
[Result "1-0"]
[WhiteElo "2425"]
[BlackElo "2317"]
[TimeControl "180+1"]
[EndTime "15:42:39 PDT"]
[Termination "kacprekt won by resignation"]

1. Nf3 {[%clk 0:03:00.5]} 1... d5 {[%clk 0:02:58.1]} 2. e3 {[%clk 0:03:00.8]}
2... c5 {[%clk 0:02:55.1]} 3. b3 {[%clk 0:03:01.1]} 3... Nc6 {[%clk 0:02:54.1]}
4. Bb5 {[%clk 0:03:00]} 4... Bd7 {[%clk 0:02:52.2]} 5. O-O {[%clk 0:02:58.5]}
5... e6 {[%clk 0:02:47.8]} 6. Bb2 {[%clk 0:02:58.1]} 6... Nf6 {[%clk 0:02:44.6]}
7. c4 {[%clk 0:02:54.9]} 7... Bd6 {[%clk 0:02:43.9]} 8. cxd5 {[%clk 0:02:54.4]}
8... exd5 {[%clk 0:02:43.3]} 9. Bxc6 {[%clk 0:02:54.6]} 9... bxc6 {[%clk
0:02:42.3]} 10. d4 {[%clk 0:02:55.5]} 10... O-O {[%clk 0:02:39.8]} 11. Nc3
{[%clk 0:02:48.9]} 11... Re8 {[%clk 0:02:39.3]} 12. Ba3 {[%clk 0:02:45.7]} 12...
Qe7 {[%clk 0:02:32.8]} 13. dxc5 {[%clk 0:02:42]} 13... Bxc5 {[%clk 0:02:32.5]}
14. Bxc5 {[%clk 0:02:42.2]} 14... Qxc5 {[%clk 0:02:33.4]} 15. Qd4 {[%clk
0:02:42.5]} 15... Qb6 {[%clk 0:02:29.6]} 16. Na4 {[%clk 0:02:41.1]} 16... Qa5
{[%clk 0:02:28]} 17. Qc5 {[%clk 0:02:39.5]} 17... Qd8 {[%clk 0:02:16.1]} 18. Nc3
{[%clk 0:02:29.4]} 18... h5 {[%clk 0:02:05.1]} 19. Nd4 {[%clk 0:02:29]} 19... h4
{[%clk 0:02:03.3]} 20. h3 {[%clk 0:02:24.4]} 20... Qb6 {[%clk 0:02:02.9]} 21.
Na4 {[%clk 0:02:22]} 21... Qa6 {[%clk 0:02:02.1]} 22. Rfc1 {[%clk 0:02:10.7]}
22... Ne4 {[%clk 0:02:01.9]} 23. Qc2 {[%clk 0:02:08.3]} 23... Re5 {[%clk
0:01:48.8]} 24. Nc5 {[%clk 0:02:04.6]} 24... Nxc5 {[%clk 0:01:43.8]} 25. Qxc5
{[%clk 0:02:05.5]} 25... Rg5 {[%clk 0:01:43.4]} 26. Kh2 {[%clk 0:01:48.4]} 26...
Qd3 {[%clk 0:01:38.4]} 27. Qe7 {[%clk 0:01:41]} 27... Bf5 {[%clk 0:01:05.1]} 28.
Qxg5 {[%clk 0:01:36.5]} 1-0